bitfinex-derivatives/quotes_SOLF0:USTF0_20260305
["timestamp","ask_amount","ask_price","bid_price","bid_amount"]
[1772726916257,10.13,88.817,88.751,8.64839327]
[1772726916456,9.55584145,88.85,88.751,8.64839327]
[1772726916755,13.67214446,88.885,88.75,9.55584145]
[1772726916756,9.55584145,88.87,88.771,8.60567625]
[1772726917060,18.35930379,88.87,88.771,8.60567625]
[1772726917262,10.128,88.838,88.792,0.08394544]
[1772726917556,9.55584145,88.88,88.79,9.55584145]
[1772726917855,10.128,88.838,88.771,8.60567625]
[1772726918655,0.0760705,88.813,88.771,8.60567625]
[1772726919462,9.55584145,88.88,88.791,8.51188529]
[1772726919664,10.125,88.865,88.81,9.55584145]
[1772726920662,10.125,88.865,88.829,0.07343152]
[1772726920962,10.123,88.877,88.829,0.07343152]
[1772726921162,157.444,88.899,88.829,0.07343152]
[1772726921356,157.426,88.908,88.73,62.0]
[1772726921357,9.55584145,88.87,88.771,8.63484245]
[1772726921562,9.55584145,88.87,88.791,8.63410718]
[1772726922364,10.126,88.858,88.791,8.63410718]
[1772726922961,10.127,88.842,88.791,8.63410718]
[1772726923156,0.07243892,88.833,88.791,8.63410718]
[1772726924660,18.39057081,88.889,88.794,8.62113352]
[1772726924861,10.124,88.872,88.811,8.62113352]
[1772726925269,8.90815126,88.908,88.811,8.62113352]
[1772726925464,10.124,88.874,88.811,8.62113352]
[1772726925771,8.90815126,88.908,88.811,8.62113352]
[1772726925963,10.124,88.869,88.811,8.62113352]
[1772726926163,10.124,88.869,88.834,0.07163883]
[1772726926765,10.123,88.881,88.834,0.07163883]
[1772726926969,9.55584145,88.9,88.834,0.07163883]
[1772726927466,9.55584145,88.9,88.811,8.62113352]
[1772726927467,18.46399271,88.9,88.811,8.62113352]
[1772726927766,8.90815126,88.899,88.811,8.62113352]
[1772726927966,8.90815126,88.904,88.811,8.62113352]
[1772726928167,8.90815126,88.908,88.811,8.62113352]
[1772726928367,10.122,88.885,88.812,8.64981293]
[1772726928870,8.90815126,88.905,88.812,8.64981293]
[1772726929065,8.90815126,88.904,88.812,8.64981293]
[1772726929370,0.07749657,88.857,88.812,8.64981293]
[1772726930170,10.20349657,88.857,88.812,8.64981293]
[1772726930572,0.07749657,88.857,88.812,8.64981293]
[1772726931065,0.07749657,88.857,88.8,9.55584145]
[1772726931066,8.90815126,88.889,88.821,8.70885407]
[1772726931271,20.50821669,88.942,88.82,9.55584145]
[1772726931272,9.51449439,88.909,88.827,8.67010578]
[1772726931471,8.9375694,88.909,88.827,8.67010578]
[1772726932068,8.9375694,88.908,88.827,8.67010578]
[1772726932273,9.55584145,88.89,88.801,8.66952098]
[1772726932469,9.55584145,88.89,88.859,0.07810132]
[1772726932775,8.9375694,88.889,88.801,8.66952098]
[1772726932969,8.9375694,88.888,88.801,8.66952098]
[1772726933170,8.9375694,88.889,88.801,8.66952098]
[1772726933373,10.125,88.866,88.81,10.131]
[1772726933570,10.125,88.866,88.811,8.76380412]
[1772726934074,10.123,88.878,88.813,8.76380412]
[1772726934273,10.25410834,88.909,88.813,8.76380412]
[1772726934274,10.25410834,88.911,88.813,8.76380412]
[1772726934469,18.47135161,88.909,88.813,8.76380412]
[1772726934673,9.55584145,88.89,88.813,8.76380412]
[1772726935477,9.55584145,88.87,88.8,8.74394104]
[1772726935669,8.94402915,88.869,88.781,8.74344153]
[1772726935871,8.94402915,88.868,88.781,8.74344153]
[1772726936073,10.128,88.837,88.784,8.74344153]
[1772726936267,8.94402915,88.866,88.784,8.74344153]
[1772726936470,8.94402915,88.869,88.816,0.07873613]
[1772726936671,9.55584145,88.87,88.816,0.07873613]
[1772726936873,10.126,88.856,88.816,0.07873613]
[1772726937167,8.93628737,88.889,88.802,8.74344153]
[1772726937368,8.93628737,88.888,88.802,8.74344153]
[1772726937569,18.45431405,88.887,88.802,8.74344153]
[1772726937767,9.55584145,88.87,88.802,8.74344153]
[1772726937967,8.93628737,88.869,88.783,8.73721015]
[1772726938170,10.128,88.837,88.784,18.87121015]
[1772726938364,10.128,88.837,88.77,9.55584145]
[1772726938365,8.93628737,88.867,88.827,0.08074223]
[1772726938570,10.128,88.835,88.785,8.73721015]
[1772726939972,0.08427516,88.819,88.785,8.73721015]
[1772726940177,0.08427516,88.819,88.726,20.282]
[1772726940178,0.08427516,88.819,88.757,8.80574156]
[1772726940376,0.08427516,88.819,88.771,8.80574156]
[1772726940582,9.55584145,88.85,88.771,8.80574156]
[1772726940777,9.55584145,88.85,88.775,8.81669721]
[1772726941179,0.07590869,88.804,88.748,8.81669721]
[1772726941371,157.632,88.792,88.612,9.79671112]
[1772726941577,9.55584145,88.74,88.651,9.79671112]
[1772726941773,10.146,88.682,88.629,9.7961899]
[1772726942072,0.08595467,88.711,88.629,9.7961899]
[1772726942274,0.08595467,88.711,88.641,9.7961899]
[1772726942479,9.55584145,88.74,88.641,9.7961899]
[1772726942673,9.55584145,88.72,88.641,9.7961899]
[1772726942875,157.746,88.728,88.641,9.7961899]
[1772726943073,157.725,88.74,88.641,9.7961899]
[1772726943074,0.07746425,88.685,88.641,9.7961899]
[1772726943376,0.07746425,88.685,88.57,62.0]
[1772726943377,10.147,88.672,88.601,9.82831597]
[1772726943978,9.55584145,88.72,88.621,9.82784148]
[1772726944178,9.55584145,88.72,88.631,5.34784148]
[1772726944875,157.86,88.664,88.496,17.2976046]
[1772726945083,9.55584145,88.6,88.5,9.55584145]
[1772726945275,10.158,88.573,88.496,17.2976046]
[1772726945472,9.55584145,88.6,88.5,9.55584145]
[1772726945976,9.55584145,88.56,88.496,13.63386069]
[1772726946278,9.55584145,88.58,88.496,13.63386069]
[1772726946484,9.55584145,88.58,88.497,7.92028063]
[1772726946680,157.925,88.628,88.497,7.92028063]
[1772726946880,10.157,88.586,88.497,7.92028063]
[1772726947286,0.07589422,88.571,88.501,7.7129133]
[1772726947680,9.55584145,88.6,88.501,7.7129133]
[1772726948284,10.155,88.599,88.501,7.7129133]
[1772726948674,10.155,88.599,88.511,7.8838159]
[1772726949175,9.55584145,88.62,88.511,7.8838159]
[1772726949176,9.55584145,88.58,88.511,7.8838159]
[1772726949377,9.55584145,88.58,88.418,158.297]
[1772726949378,158.113,88.523,88.378,7.88424624]
[1772726949578,9.55584145,88.49,88.391,7.88402328]
[1772726949778,158.083,88.539,88.391,7.88402328]
[1772726949974,10.169,88.48,88.391,7.88402328]
[1772726950283,9.55584145,88.47,88.391,7.88402328]
[1772726950779,0.0727566,88.444,88.361,7.78493482]
[1772726951184,0.0727566,88.444,88.371,7.78493482]
[1772726951379,158.088,88.536,88.371,7.78493482]
[1772726951582,337.50884332,88.539,88.391,7.78493482]
[1772726951583,9.55584145,88.5,88.391,7.78493482]
[1772726951784,10.167,88.495,88.391,7.78493482]
[1772726951980,9.55584145,88.48,88.445,0.08005221]
[1772726952180,19.72684145,88.46,88.363,7.78459426]
[1772726952780,9.55584145,88.44,88.363,7.78459426]
[1772726953087,158.165,88.493,88.363,7.78459426]
[1772726953088,9.55584145,88.46,88.363,7.78459426]
[1772726953283,9.55584145,88.48,88.381,7.75025587]
[1772726953685,9.55584145,88.43,88.219,158.655]
[1772726953980,10.179,88.388,88.291,7.74983253]
[1772726954284,10.179,88.388,88.2,9.55584145]
[1772726954285,9.55584145,88.37,88.271,7.74983253]
[1772726954486,9.55584145,88.35,88.271,7.74983253]
[1772726954684,0.08134698,88.348,88.271,7.74983253]
[1772726954883,0.08134698,88.348,88.291,7.83155162]
[1772726955283,9.55584145,88.41,88.31,9.55584145]
[1772726955484,158.309,88.412,88.291,7.83155162]
[1772726955684,9.55584145,88.4,88.291,7.83155162]
[1772726955885,10.182,88.361,88.291,7.83155162]
[1772726956183,9.55584145,88.39,88.291,7.83155162]
[1772726956384,10.177,88.406,88.291,7.83155162]
[1772726956782,9.55584145,88.43,88.311,7.94062693]
[1772726956985,10.175,88.425,88.311,7.94062693]
[1772726957682,10.175,88.425,88.331,7.94048446]
[1772726958283,9.55584145,88.43,88.331,7.94048446]
[1772726958284,10.177,88.409,88.331,7.94048446]
[1772726958685,9.55584145,88.43,88.331,7.94048446]
[1772726958686,9.55584145,88.41,88.331,7.94048446]
[1772726958883,10.181,88.378,88.304,7.9376459]
[1772726959185,10.181,88.378,88.209,158.674]
[1772726959186,9.55584145,88.37,88.271,7.9376459]
[1772726959390,9.55584145,88.35,88.271,7.9376459]
[1772726959693,0.0718918,88.329,88.271,7.9376459]
[1772726960187,10.188,88.316,88.27,17.59203786]
[1772726960380,158.379,88.373,88.27,17.59203786]
[1772726960587,9.55584145,88.35,88.27,17.59203786]
[1772726960781,10.185,88.34,88.27,17.59203786]
[1772726960986,9.55584145,88.36,88.271,7.91536999]
[1772726961183,0.07578723,88.319,88.271,7.91536999]
[1772726961488,0.07578723,88.319,88.27,17.59203786]
[1772726962192,10.187,88.318,88.27,17.59203786]
[1772726962593,0.07578723,88.319,88.27,17.59203786]
[1772726962793,10.189,88.304,88.27,17.52044514]
[1772726963294,9.55584145,88.34,88.27,17.52044514]
[1772726963492,10.32183486,88.605,88.27,17.52044514]
[1772726963493,9.55584145,88.38,88.281,7.88602722]
[1772726963993,10.181,88.371,88.281,7.88602722]
[1772726964194,9.55584145,88.38,88.322,0.07926213]
[1772726964389,158.322,88.405,88.271,7.88384438]
[1772726964390,9.55584145,88.36,88.271,7.88384438]
[1772726964589,10.182,88.362,88.271,7.88384438]
[1772726964789,9.55584145,88.38,88.291,7.89040999]
[1772726964991,9.55584145,88.39,88.291,7.89040999]
[1772726965192,10.181,88.377,88.291,7.89040999]
[1772726965797,0.08033039,88.343,88.291,7.89040999]
[1772726966797,0.08033039,88.343,88.27,17.52044514]
[1772726967293,10.185,88.342,88.27,17.52044514]
[1772726967599,9.66658319,88.36,88.271,7.80628516]
[1772726967899,10.182,88.364,88.281,7.74227313]
[1772726968098,9.66658319,88.37,88.281,7.74227313]
[1772726968300,9.66658319,88.35,88.281,7.74227313]
[1772726968501,9.66658319,88.35,88.27,17.52044514]
[1772726969001,10.184,88.348,88.271,7.71910914]
[1772726970603,10.189,88.307,88.223,7.7188077]
[1772726971398,9.66658319,88.29,88.256,0.07194092]
[1772726971605,9.66658319,88.31,88.256,0.07194092]
[1772726972002,9.66658319,88.31,88.225,7.76523668]
[1772726972202,442.97440562,88.36,88.227,7.76498273]
[1772726972203,9.66658319,88.33,88.227,7.76498273]
[1772726972505,9.66658319,88.35,88.241,7.76498273]
[1772726972703,9.66658319,88.35,88.27,0.07501375]
[1772726973200,9.66658319,88.35,88.241,7.79201536]
[1772726973605,10.185,88.335,88.301,0.07167207]
[1772726973800,9.66658319,88.35,88.301,0.07167207]
[1772726974003,442.97440562,88.36,88.301,0.07167207]
[1772726974499,9.66658319,88.35,88.275,7.79179483]
[1772726974706,442.97440562,88.36,88.275,7.79179483]
[1772726975000,452.64098881,88.36,88.275,7.79179483]
[1772726975305,452.64098881,88.36,88.304,0.07378807]
[1772726975900,452.64098881,88.36,88.275,7.79179483]
[1772726976306,9.66658319,88.34,88.275,7.79179483]
[1772726976501,452.64098881,88.36,88.275,7.79179483]
[1772726977304,442.97440562,88.36,88.251,7.77068435]
[1772726977505,452.64098881,88.36,88.251,7.77068435]
[1772726977706,452.64098881,88.36,88.261,7.77045562]
[1772726977902,10.185,88.338,88.297,0.07398238]
[1772726978509,10.185,88.338,88.266,7.77045562]
[1772726978703,10.185,88.338,88.268,7.76640766]
[1772726978908,10.185,88.338,88.309,0.07157843]
[1772726979109,10.185,88.338,88.268,7.76640766]
[1772726979110,452.64098881,88.36,88.268,7.76640766]
[1772726979315,0.07548787,88.312,88.268,7.76640766]
[1772726980408,452.64098881,88.36,88.268,7.76640766]
[1772726980613,452.64098881,88.36,88.281,0.07821119]
[1772726980811,442.97440562,88.36,88.281,0.07821119]
[1772726981009,452.64098881,88.36,88.268,7.76640766]
[1772726981316,452.64098881,88.36,88.24,7.71011613]
[1772726981317,10.188,88.316,88.24,7.71011613]
[1772726981513,10.188,88.316,88.168,158.746]
[1772726981514,158.627,88.236,88.008,477.104]
[1772726981713,9.66658319,88.25,88.161,7.70999123]
[1772726982016,9.66658319,88.26,88.161,7.70999123]
[1772726982610,10.197,88.233,88.161,7.70999123]
[1772726982916,9.66658319,88.27,88.202,0.07946019]
[1772726983113,9.66658319,88.28,88.202,0.07946019]
[1772726983410,9.66658319,88.28,88.183,7.70654666]
[1772726983612,10.194,88.261,88.183,7.70654666]
[1772726984212,10.194,88.261,88.2,9.66658319]
[1772726984515,10.193,88.273,88.201,7.70656205]
[1772726984813,20.37,88.342,88.221,7.86956976]
[1772726985013,10.19,88.299,88.241,7.86956976]
[1772726985212,9.66658319,88.33,88.241,7.86956976]
[1772726985416,9.66658319,88.31,88.214,7.86956976]
[1772726985917,10.191,88.287,88.214,7.86956976]
[1772726986416,0.12302806,88.27,88.214,7.86956976]
[1772726987213,0.12302806,88.27,88.23,9.66658319]
[1772726987415,9.66658319,88.33,88.15,158.779]
[1772726987614,3.169489,88.188,88.08,9.66658319]
[1772726987807,3.169489,88.181,88.08,9.66658319]
[1772726988014,10.208,88.143,88.08,9.66658319]
[1772726988710,10.208,88.143,88.103,0.08233585]
[1772726989513,0.08006984,88.132,87.846,26.9327263]
[1772726989717,0.08006984,88.132,88.051,5.0138954]
[1772726990115,3.58910493,88.145,88.051,5.0138954]
[1772726990313,3.58910493,88.145,88.07,9.66658319]
[1772726990613,10.21,88.127,88.051,5.0138954]
[1772726991014,0.07715097,88.116,88.051,5.0138954]
[1772726991412,10.21,88.127,88.051,5.0138954]
[1772726991614,3.60092765,88.17,88.051,5.0138954]
[1772726991814,158.75,88.167,88.061,5.0138954]
[1772726992015,4.99026213,88.136,87.99,40.89007285]
[1772726992318,40.89007285,88.13,87.99,40.89007285]
[1772726992516,45.88033498,88.13,87.99,40.89007285]
[1772726992710,4.99026213,88.069,87.79,26.9327263]
[1772726992907,4.99026213,88.059,87.82,29.58265771]
[1772726993110,4.99026213,88.01,87.9,40.89007285]
[1772726993312,158.946,88.059,87.82,18.17296392]
[1772726993313,4.99026213,88.036,87.936,0.07456706]
[1772726993518,4.99026213,88.027,87.936,0.07456706]
[1772726993817,4.99026213,88.005,87.88,40.89007285]
[1772726994019,4.99026213,88.005,87.881,5.0138954]
[1772726994414,4.99026213,88.005,87.909,5.0138954]
[1772726994615,4.99026213,88.065,87.941,5.0138954]
[1772726994917,10.22,88.04,87.941,5.0138954]
[1772726995219,4.99026213,88.037,87.941,5.0138954]
[1772726995614,4.99026213,88.022,87.941,5.0138954]
[1772726995809,4.99026213,88.05,87.911,5.0138954]
[1772726996209,4.99026213,88.048,87.911,5.0138954]
[1772726996410,4.99026213,88.048,87.972,0.08484833]
[1772726996812,4.99026213,88.045,87.972,0.08484833]
[1772726997011,4.99026213,88.032,87.924,5.0138954]
[1772726997311,10.221,88.024,87.924,5.0138954]
[1772726997514,4.99026213,88.032,87.931,5.0138954]
[1772726998520,4.99026213,88.01,87.931,5.0138954]
[1772726998716,4.99026213,88.049,87.931,5.0138954]
[1772726999220,4.99026213,88.03,87.931,5.0138954]
[1772727000527,4.99026213,88.03,87.972,0.08475202]
[1772727001223,4.99026213,88.03,87.931,5.0138954]
[1772727001433,4.99026213,88.057,87.931,5.0138954]
[1772727001622,10.218,88.055,87.992,0.07490977]
[1772727001821,158.869,88.101,87.992,0.07490977]
[1772727001822,4.99026213,88.048,87.992,0.07490977]
[1772727002023,4.99026213,88.048,87.947,5.0138954]
[1772727002624,4.99026213,88.045,87.947,5.0138954]
[1772727002826,4.99026213,88.036,87.919,5.0138954]
[1772727003026,4.99026213,88.036,87.854,159.314]
[1772727003027,4.99026213,88.036,87.921,5.0138954]
[1772727003425,10.219,88.042,87.95,40.89007285]
[1772727003727,15.20826213,88.057,87.95,40.89007285]
[1772727003932,4.99026213,88.056,87.95,40.89007285]
[1772727004128,4.99026213,88.056,87.923,10.233]
[1772727004129,4.99026213,88.036,87.905,10.235]
[1772727004337,4.99026213,88.036,87.92,40.89007285]
[1772727004932,0.07351493,87.979,87.92,40.89007285]
[1772727005329,10.221,88.027,87.921,5.0138954]
[1772727005531,10.221,88.027,87.942,5.0138954]
[1772727005730,10.219,88.046,87.951,5.0138954]
[1772727006028,4.99026213,88.045,87.951,5.0138954]
[1772727006233,10.222,88.02,87.951,5.0138954]
[1772727006634,4.99026213,88.019,87.911,5.0138954]
[1772727006934,10.224,88.001,87.911,5.0138954]
[1772727007534,15.21226213,88.017,87.911,5.0138954]
[1772727007834,4.99026213,88.017,87.911,5.0138954]
[1772727008232,10.225,87.997,87.911,5.0138954]
[1772727008434,4.99026213,88.017,87.921,5.0138954]
[1772727008734,10.223,88.012,87.921,5.0138954]
[1772727010028,158.916,88.075,87.871,5.0138954]
[1772727010029,4.99026213,88.009,87.871,5.0138954]
[1772727010227,4.99026213,88.002,87.871,5.0138954]
[1772727010429,4.99026213,88.002,87.901,5.0138954]
[1772727011136,10.226,87.989,87.943,0.07238324]
[1772727011736,10.226,87.989,87.923,5.0138954]
[1772727012337,4.99026213,87.975,87.9,40.89007285]
[1772727012539,4.99026213,87.964,87.842,5.0138954]
[1772727012840,0.07303966,87.965,87.891,5.0138954]
[1772727013142,4.99026213,87.988,87.882,5.0138954]
[1772727013338,4.99026213,87.988,87.891,5.0138954]
[1772727013732,4.99026213,87.988,87.911,5.0138954]
[1772727013931,10.226,87.989,87.911,5.0138954]
[1772727014332,4.99026213,87.988,87.911,5.0138954]
[1772727014536,10.227,87.974,87.911,5.0138954]
[1772727014939,4.99026213,87.988,87.911,5.0138954]
[1772727015238,10.226,87.987,87.911,5.0138954]
[1772727015446,4.99026213,87.988,87.911,5.0138954]
[1772727015740,15.21626213,87.988,87.911,5.0138954]
[1772727015938,4.99026213,87.988,87.911,5.0138954]
[1772727016540,10.226,87.986,87.92,9.74727419]
[1772727016739,4.99026213,87.988,87.92,14.76116959]
[1772727017048,4.99026213,88.029,87.921,5.0138954]
[1772727017941,4.99026213,88.029,87.926,5.0138954]
[1772727018247,4.99026213,88.009,87.901,5.0138954]
[1772727018446,9.74727419,87.99,87.901,5.0138954]
[1772727018648,10.229,87.959,87.901,5.0138954]
[1772727018842,4.99026213,87.989,87.901,5.0138954]
[1772727019041,15.47045745,87.971,87.901,5.0138954]
[1772727019256,5.24245745,87.971,87.901,5.0138954]
[1772727019639,5.24245745,87.995,87.901,5.0138954]
[1772727019844,5.24245745,87.979,87.878,5.38719372]
[1772727020045,0.07180536,87.945,87.878,5.38719372]
[1772727020552,5.24245745,87.957,87.878,5.38719372]
[1772727021747,10.231,87.944,87.878,5.38719372]
[1772727022138,5.24245745,87.957,87.881,5.38719372]
[1772727022446,10.23,87.955,87.881,5.38719372]
[1772727022947,10.227,87.977,87.902,10.236]
[1772727023147,5.24245745,87.981,87.903,5.38719372]
[1772727023944,0.07448046,87.951,87.903,5.38719372]
[1772727024440,0.07448046,87.951,87.861,5.38719372]
[1772727024640,0.07448046,87.951,87.881,5.38719372]
[1772727024840,0.07448046,87.951,87.901,5.38719372]
[1772727025047,10.227,87.978,87.905,5.38719372]
[1772727025649,10.227,87.978,87.907,5.38719372]
[1772727025850,10.226,87.988,87.907,5.38719372]
[1772727026043,5.24245745,88.001,87.907,5.38719372]
[1772727026241,0.07323923,87.951,87.907,5.38719372]
[1772727026446,0.07323923,87.951,87.911,5.38719372]
[1772727027148,10.226,87.988,87.911,5.38719372]
[1772727027544,5.24245745,88.001,87.931,5.61422025]
[1772727028450,10.225,87.991,87.931,5.61422025]
[1772727028752,5.50788206,88.025,87.931,5.61422025]
[1772727028948,10.224,88.001,87.94,9.7434435]
[1772727029356,5.50788206,88.025,87.941,5.61422025]
[1772727029548,10.222,88.02,87.96,9.7434435]
[1772727029746,5.50788206,88.052,87.961,5.61422025]
[1772727029949,0.07201357,87.992,87.98,9.7434435]
[1772727030142,5.50788206,88.052,87.98,9.7434435]
[1772727030753,10.221,88.032,87.98,9.7434435]
[1772727031548,10.219,88.042,87.997,0.0777458]
[1772727031751,5.50788206,88.052,87.997,0.0777458]
[1772727032151,5.50788206,88.052,87.959,5.61422025]
[1772727032552,10.22,88.033,88.016,0.00828567]
[1772727033053,5.50788206,88.052,87.959,5.61422025]
[1772727033252,10.223,88.007,87.95,9.7434435]
[1772727033557,10.223,88.007,87.942,10.231]
[1772727034051,0.0752063,87.987,87.942,10.231]
[1772727034557,0.0752063,87.987,87.913,5.61422025]
[1772727035051,10.226,87.986,87.922,5.61422025]
[1772727035953,5.50788206,87.998,87.928,5.61422025]
[1772727035954,10.225,87.996,87.928,5.61422025]
[1772727036156,10.225,87.996,87.931,5.61422025]
[1772727036451,10.223,88.007,87.953,5.69503965]
[1772727036852,5.50788206,88.019,87.953,0.0808194]
[1772727037058,5.50788206,87.998,87.931,5.61422025]
[1772727037456,5.50788206,87.998,87.901,5.61422025]
[1772727037663,10.227,87.973,87.905,5.61422025]
[1772727037857,5.50788206,87.998,87.956,0.00554546]
[1772727038357,5.50788206,87.998,87.905,5.61422025]
[1772727038562,10.226,87.986,87.905,5.61422025]
[1772727039063,10.227,87.977,87.918,5.61422025]
[1772727039460,5.50788206,87.998,87.921,5.61422025]
[1772727039762,10.227,87.98,87.939,0.07922211]
[1772727040463,5.50788206,88.011,87.93,5.61422025]
[1772727040762,5.50788206,88.009,87.951,0.080768]
[1772727041258,5.50788206,88.009,87.879,20.477]
[1772727041259,5.50788206,88.009,87.933,5.61422025]
[1772727041665,5.50788206,88.009,87.971,0.07860913]
[1772727042066,10.225,87.992,87.971,0.07860913]
[1772727042264,5.50788206,88.029,87.971,0.07860913]
[1772727042655,10.224,88.003,87.971,0.07860913]
[1772727042858,20.433,88.068,87.943,5.61422025]
[1772727043061,10.22,88.034,87.98,9.7434435]
[1772727043260,5.50788206,88.056,87.98,9.7434435]
[1772727043560,5.50788206,88.056,87.981,5.61422025]
[1772727043864,10.22,88.035,87.998,0.0792207]
[1772727044364,10.22,88.035,87.983,5.61422025]
[1772727044957,10.22,88.035,88.008,0.08026133]
[1772727045559,5.50788206,88.056,88.008,0.08026133]
[1772727046065,5.50788206,88.089,88.008,0.08026133]
[1772727046267,5.50788206,88.089,88.008,5.69448158]
[1772727046463,5.50788206,88.056,88.008,0.08026133]
[1772727046665,5.50788206,88.056,87.985,5.61422025]
[1772727046961,5.50788206,88.056,88.023,0.08172289]
[1772727047166,0.07842531,88.041,87.962,5.61422025]
[1772727047360,0.07842531,88.041,87.971,5.61422025]
[1772727047560,0.07842531,88.041,88.009,10.223]
[1772727047768,452.5412598,88.093,88.011,5.61422025]
[1772727047970,5.50788206,88.092,88.011,5.61422025]
[1772727048468,5.50788206,88.092,88.03,9.7434435]
[1772727049468,10.214,88.091,88.03,9.7434435]
[1772727049967,10.217,88.065,88.011,5.61422025]
[1772727050168,5.65768122,88.079,87.99,5.46356599]
[1772727050367,5.65768122,88.068,87.99,5.46356599]
[1772727050572,10.218,88.058,87.999,10.224]
[1772727051366,10.218,88.058,87.99,15.68856599]
[1772727051562,5.65768122,88.068,87.99,5.46356599]
[1772727051768,0.0762322,88.037,87.967,5.46356599]
[1772727052366,5.65768122,88.059,87.967,5.46356599]
[1772727053170,0.07329275,88.022,87.967,5.46356599]
[1772727053371,0.07329275,88.022,87.971,5.46356599]
[1772727053768,5.65768122,88.039,87.946,5.46356599]
[1772727054068,5.65768122,88.019,87.921,5.46356599]
[1772727054567,0.07244142,88.001,87.921,5.46356599]
[1772727055072,5.65768122,88.019,87.942,5.46356599]
[1772727055469,5.65768122,88.019,87.853,159.316]
[1772727055669,158.925,88.07,87.853,159.316]
[1772727055670,5.65768122,87.999,87.915,5.46356599]
[1772727056066,10.225,87.998,87.929,5.46356599]
[1772727056378,0.07676149,87.966,87.929,5.46356599]
[1772727056776,0.07676149,87.966,87.911,5.46356599]
[1772727057373,5.65768122,87.999,87.911,5.46356599]
[1772727057574,5.65768122,87.999,87.914,5.46356599]
[1772727057973,5.65768122,87.979,87.891,5.46356599]
[1772727058173,5.65768122,87.956,87.87,15.20700949]
[1772727058379,5.65768122,87.956,87.871,5.46356599]
[1772727059276,5.65768122,87.956,87.905,0.07420528]
[1772727059978,10.228,87.965,87.905,0.07420528]
[1772727060174,5.65768122,87.978,87.91,9.7434435]
[1772727060378,20.442,88.029,87.911,5.46356599]
[1772727060379,5.65768122,88.001,87.911,5.46356599]
[1772727060575,10.229,87.962,87.89,19.9804435]
[1772727060773,5.65768122,87.969,87.89,9.7434435]
[1772727061281,0.08020509,87.938,87.89,15.20700949]
[1772727061874,0.08020509,87.938,87.87,9.7434435]
[1772727062074,0.08020509,87.938,87.866,5.46356599]
[1772727062483,5.65768122,87.929,87.831,5.46356599]
[1772727062872,0.07477343,87.911,87.851,5.46356599]
[1772727063371,5.65768122,87.936,87.851,5.46356599]
[1772727064170,20.45,87.997,87.89,15.20700949]
[1772727064171,5.65768122,87.961,87.89,15.20700949]
[1772727064580,9.7434435,87.98,87.895,5.46356599]
[1772727064773,5.65768122,87.979,87.895,5.46356599]
[1772727065378,5.65768122,87.979,87.894,0.02128826]
[1772727065672,5.65768122,87.953,87.894,0.02128826]
[1772727065877,5.65768122,87.975,87.894,0.02128826]
[1772727066077,20.448,88.002,87.894,0.02128826]
[1772727066078,5.65768122,87.95,87.894,0.02128826]
[1772727066479,15.40112472,87.95,87.894,0.02128826]
[1772727066679,5.65768122,87.949,87.894,0.02128826]
[1772727067281,5.65768122,87.926,87.851,5.46356599]
[1772727067881,5.65768122,87.923,87.86,9.7434435]
[1772727068077,5.65768122,87.923,87.851,5.46356599]
[1772727068480,0.07626109,87.897,87.851,5.46356599]
[1772727068979,0.07626109,87.897,87.84,9.7434435]
[1772727069280,9.7434435,87.95,87.84,9.7434435]
[1772727069281,5.65768122,87.993,87.891,5.46356599]
[1772727069477,5.65768122,87.993,87.911,5.46356599]
[1772727069478,10.227,87.98,87.911,5.46356599]
[1772727069981,5.65768122,87.993,87.911,5.46356599]
[1772727070682,5.65768122,87.993,87.943,0.0756318]
[1772727071580,15.88268122,87.993,87.93,15.7310753]
[1772727072186,5.65768122,87.993,87.938,10.231]
[1772727072383,10.224,88.003,87.938,10.231]
[1772727072883,5.65768122,88.014,87.933,5.46356599]
[1772727073074,5.65768122,88.014,87.911,5.46356599]
[1772727073475,0.07584235,87.982,87.911,5.46356599]
[1772727073884,5.65768122,87.981,87.911,5.46356599]
[1772727074093,10.225,87.992,87.911,5.46356599]
[1772727074279,5.65768122,88.004,87.911,5.46356599]
[1772727074788,5.65768122,88.004,87.832,159.353]
[1772727074789,5.65768122,87.979,87.89,9.7434435]
[1772727075082,5.65768122,87.979,87.823,159.37]
[1772727075083,5.65768122,87.969,87.841,5.46356599]
[1772727075286,5.65768122,87.969,87.89,9.7434435]
[1772727075484,9.7434435,87.99,87.891,5.46356599]
[1772727075788,5.65768122,87.989,87.93,9.7434435]
[1772727076288,0.07595483,87.949,87.916,5.46356599]
[1772727076482,5.65768122,87.989,87.951,0.07360808]
[1772727077091,5.65768122,87.989,87.916,5.46356599]
[1772727077988,5.65768122,87.989,87.944,0.07482695]
[1772727078382,5.65768122,87.989,87.77,28.14029687]